[Event "NJSK 2023 Meisjes C"]
[Site "Almelo, Netherlands"]
[Date "2023.05.03"]
[Round "4.6"]
[White "Rutten, Lenthe"]
[Black "Ganeshram, Niranjana"]
[Result "1/2-1/2"]
[TimeControl "90min/40moves + 30min + 30sec/move"]
[WhiteElo "604"]
[BlackElo "775"]

1. d4 {[%clk 01:30:59]} d5 {[%clk 01:30:53]} {[%emt 00:00:07]} 2. c4 {[%clk
01:31:20]} {[%emt 00:00:08]} e6 {[%clk 01:31:16]} {[%emt 00:00:08]} 3. Nc3
{[%clk 01:31:37]} {[%emt 00:00:13]} Nf6 {[%clk 01:31:40]} {[%emt 00:00:06]} 4.
Bg5 {[%clk 01:31:42]} {[%emt 00:00:24]} c5 {[%clk 01:32:00]} {[%emt 00:00:11]}
5. Nf3 {[%clk 01:31:15]} {[%emt 00:00:57]} Nc6 {[%clk 01:32:20]} {[%emt
00:00:10]} 6. e3 {[%clk 01:31:03]} {[%emt 00:00:42]} Bd6 {[%clk 01:32:51]}
{[%emt 00:00:35]} 7. Bxf6 {[%clk 01:30:55]} {[%emt 00:01:02]} Qxf6 {[%clk
01:33:07]} {[%emt 00:00:13]} 8. cxd5 {[%clk 01:30:01]} {[%emt 00:01:26]} cxd4
{[%clk 01:32:55]} {[%emt 00:00:41]} 9. Nxd4 {[%clk 01:29:43]} {[%emt 00:00:48]}
Nxd4 {[%clk 01:33:02]} {[%emt 00:00:23]} 10. Qxd4 {[%clk 01:28:42]} {[%emt
00:01:31]} Be5 {[%clk 01:32:41]} {[%emt 00:00:52]} 11. Bb5+ {[%clk 01:27:13]}
{[%emt 00:01:58]} Bd7 {[%clk 01:32:39]} {[%emt 00:00:32]} 12. Bxd7+ {[%clk
01:26:43]} {[%emt 00:01:00]} Kxd7 {[%clk 01:32:59]} {[%emt 00:00:10]} 13. dxe6+
{[%clk 01:25:59]} {[%emt 00:01:13]} Ke8 {[%clk 01:32:34]} {[%emt 00:00:56]} 14.
Qd7+ {[%clk 01:25:26]} {[%emt 00:01:03]} Kf8 {[%clk 01:32:42]} {[%emt
00:00:22]} 15. Nd5 {[%clk 01:24:45]} {[%emt 00:01:11]} Qxe6 {[%clk 01:32:29]}
{[%emt 00:00:43]} 16. Qxe6 {[%clk 01:23:33]} {[%emt 00:01:42]} fxe6 {[%clk
01:32:52]} {[%emt 00:00:08]} 17. Nf4 {[%clk 01:23:26]} {[%emt 00:00:38]} Bxb2
{[%clk 01:32:47]} {[%emt 00:00:34]} 18. Nxe6+ {[%clk 01:22:51]} {[%emt
00:01:05]} Ke7 {[%clk 01:32:40]} {[%emt 00:00:36]} 19. Rb1 {[%clk 01:21:42]}
{[%emt 00:01:40]} Bc3+ {[%clk 01:32:53]} {[%emt 00:00:18]} 20. Ke2 {[%clk
01:21:50]} {[%emt 00:00:22]} Kxe6 {[%clk 01:33:15]} {[%emt 00:00:07]} 21. Rxb7
{[%clk 01:21:59]} {[%emt 00:00:21]} g5 {[%clk 01:32:44]} {[%emt 00:01:00]} 22.
Rc1 {[%clk 01:21:31]} {[%emt 00:01:00]} Be5 {[%clk 01:32:16]} {[%emt 00:01:30]}
23. Rc6+ {[%clk 01:21:10]} {[%emt 00:01:19]} Kf5 {[%clk 01:32:00]} {[%emt
00:00:46]} 24. f3 {[%clk 01:20:25]} {[%emt 00:01:15]} g4 {[%clk 01:31:23]}
{[%emt 00:01:08]} 25. h3 {[%clk 01:19:21]} {[%emt 00:01:33]} gxf3+ {[%clk
01:31:15]} {[%emt 00:00:38]} 26. Kxf3 {[%clk 01:19:38]} {[%emt 00:00:13]} Rhf8
{[%clk 01:30:16]} {[%emt 00:01:29]} 27. Ke2 {[%clk 01:19:23]} {[%emt 00:00:44]}
Rf6 {[%clk 01:27:16]} {[%emt 00:03:32]} 28. Rxf6+ {[%clk 01:18:45]} {[%emt
00:01:07]} Kxf6 {[%clk 01:27:13]} {[%emt 00:00:33]} 29. Rxh7 {[%clk 01:18:44]}
{[%emt 00:00:31]} a5 {[%clk 01:27:11]} {[%emt 00:00:32]} 30. g4 {[%clk
01:18:33]} {[%emt 00:00:40]} Rb8 {[%clk 01:27:14]} {[%emt 00:00:28]} 31. Kf3
{[%clk 01:18:21]} {[%emt 00:00:42]} Rb2 {[%clk 01:27:31]} {[%emt 00:00:13]} 32.
Rh6+ {[%clk 01:17:39]} {[%emt 00:01:12]} Kg7 {[%clk 01:27:38]} {[%emt
00:00:23]} 33. Re6 {[%clk 01:17:41]} {[%emt 00:00:28]} Bf6 {[%clk 01:27:33]}
{[%emt 00:00:36]} 34. Ra6 {[%clk 01:16:21]} {[%emt 00:01:50]} Rxa2 {[%clk
01:27:04]} {[%emt 00:00:58]} 35. Kf4 {[%clk 01:16:08]} {[%emt 00:00:42]} a4
{[%clk 01:26:59]} {[%emt 00:00:37]} 36. Kf5 {[%clk 01:16:19]} {[%emt 00:00:18]}
Rf2+ {[%clk 01:25:42]} {[%emt 00:01:47]} 37. Ke4 {[%clk 01:16:15]} {[%emt
00:00:33]} Ra2 {[%clk 01:25:32]} {[%emt 00:00:40]} 38. Kd3 {[%clk 01:16:30]}
{[%emt 00:00:15]} a3 {[%clk 01:25:20]} {[%emt 00:00:43]} 39. Kc4 {[%clk
01:16:36]} {[%emt 00:00:24]} Bb2 {[%clk 01:23:56]} {[%emt 00:01:54]} 40. Kb3
{[%clk 01:16:58]} {[%emt 00:00:08]} Ra1 {[%clk 01:24:04]} {[%emt 00:00:22]} 41.
e4 {[%clk 01:17:11]} {[%emt 00:00:17]} Rb1 {[%clk 01:24:14]} {[%emt 00:00:21]}
42. h4 {[%clk 01:17:16]} {[%emt 00:00:24]} Ra1 {[%clk 01:23:53]} {[%emt
00:00:51]} 43. h5 {[%clk 01:17:35]} {[%emt 00:00:10]} Rh1 {[%clk 01:23:11]}
{[%emt 00:01:12]} 44. e5 {[%clk 01:17:38]} {[%emt 00:00:28]} Kf7 {[%clk
01:23:21]} {[%emt 00:00:20]} 45. e6+ {[%clk 01:17:26]} {[%emt 00:00:41]} Ke7
{[%clk 01:23:11]} {[%emt 00:00:41]} 46. Kc4 {[%clk 01:17:38]} {[%emt 00:00:17]}
Rg1 {[%clk 01:21:29]} {[%emt 00:02:12]} 47. Kd5 {[%clk 01:17:45]} {[%emt
00:00:23]} Rd1+ {[%clk 01:19:43]} {[%emt 00:02:16]} 48. Kc4 {[%clk 01:18:01]}
{[%emt 00:00:45]} Rd6 {[%clk 01:17:43]} {[%emt 00:02:59]} 49. Rxd6 {[%clk
01:17:50]} {[%emt 00:00:41]} Kxd6 {[%clk 01:17:45]} {[%emt 00:00:27]} 50. Kb3
{[%clk 01:18:14]} {[%emt 00:00:06]} Kxe6 {[%clk 01:18:07]} {[%emt 00:00:08]} 51.
h6 {[%clk 01:18:01]} {[%emt 00:00:43]} Kf6 {[%clk 01:18:09]} {[%emt 00:00:28]}
52. g5+ {[%clk 01:18:07]} {[%emt 00:00:24]} Kg6 {[%clk 01:18:11]} {[%emt
00:00:29]} 53. Ka2 {[%clk 01:18:00]} {[%emt 00:00:37]} Kh7 {[%clk 01:15:14]}
{[%emt 00:03:27]} 54. Kb3 {[%clk 01:18:12]} {[%emt 00:00:17]} 1/2-1/2

[Event "NJSK 2023 Meisjes C"]
[Site "Almelo, Netherlands"]
[Date "2023.05.04"]
[Round "5.1"]
[White "Hagen, Carlijn"]
[Black "Fu, Janice"]
[Result "1/2-1/2"]
[TimeControl "90min/40moves + 30min + 30sec/move"]
[WhiteElo "1132"]
[BlackElo "1408"]

1. d4 {[%clk 01:30:57]} {[%emt 00:00:03]} d5 {[%clk 01:30:54]} {[%emt
00:00:07]} 2. Bf4 {[%clk 01:31:20]} {[%emt 00:00:07]} Nf6 {[%clk 01:31:06]}
{[%emt 00:00:18]} 3. e3 {[%clk 01:31:43]} {[%emt 00:00:07]} e6 {[%clk
01:31:18]} {[%emt 00:00:17]} 4. Nf3 {[%clk 01:31:53]} {[%emt 00:00:20]} Bd6
{[%clk 01:30:50]} {[%emt 00:00:58]} 5. Bg3 {[%clk 01:32:13]} {[%emt 00:00:11]}
c5 {[%clk 01:30:50]} {[%emt 00:00:30]} 6. c3 {[%clk 01:32:32]} {[%emt
00:00:11]} Qc7 {[%clk 01:30:22]} {[%emt 00:00:59]} 7. Bd3 {[%clk 01:32:22]}
{[%emt 00:00:40]} Nbd7 {[%clk 01:29:07]} {[%emt 00:01:45]} 8. Nbd2 {[%clk
01:32:07]} {[%emt 00:00:44]} b6 {[%clk 01:26:53]} {[%emt 00:02:44]} 9. Qb1
{[%clk 01:20:35]} {[%emt 00:12:01]} Bb7 {[%clk 01:15:17]} {[%emt 00:12:06]} 10.
b3 {[%clk 01:02:13]} {[%emt 00:18:52]} Bxg3 {[%clk 01:07:54]} {[%emt 00:07:53]}
11. hxg3 {[%clk 01:02:09]} {[%emt 00:00:35]} h6 {[%clk 01:05:47]} {[%emt
00:02:37]} 12. Qc2 {[%clk 00:59:48]} {[%emt 00:02:51]} a6 {[%clk 01:01:00]}
{[%emt 00:05:17]} 13. a4 {[%clk 00:58:32]} {[%emt 00:01:45]} Rc8 {[%clk
00:51:14]} {[%emt 00:10:16]} 14. Rc1 {[%clk 00:56:52]} {[%emt 00:02:09]} Qd8
{[%clk 00:43:35]} {[%emt 00:08:09]} 15. Qb2 {[%clk 00:53:57]} {[%emt 00:03:24]}
Ne4 {[%clk 00:40:45]} {[%emt 00:03:22]} 16. O-O {[%clk 00:50:03]} {[%emt
00:04:22]} O-O {[%clk 00:40:10]} {[%emt 00:01:06]} 17. c4 {[%clk 00:41:14]}
{[%emt 00:09:20]} f5 {[%clk 00:34:46]} {[%emt 00:05:55]} 18. Bb1 {[%clk
00:37:16]} {[%emt 00:04:26]} h5 {[%clk 00:31:36]} {[%emt 00:03:41]} 19. dxc5
{[%clk 00:33:57]} {[%emt 00:03:48]} Ndxc5 {[%clk 00:27:19]} {[%emt 00:04:47]}
20. Nxe4 {[%clk 00:26:34]} {[%emt 00:07:54]} fxe4 {[%clk 00:26:20]} {[%emt
00:01:29]} 21. Ne5 {[%clk 00:26:31]} {[%emt 00:00:33]} Qf6 {[%clk 00:25:33]}
{[%emt 00:01:17]} 22. f4 {[%clk 00:19:39]} {[%emt 00:07:22]} Nd7 {[%clk
00:23:21]} {[%emt 00:02:42]} 23. Qd4 {[%clk 00:18:32]} {[%emt 00:01:37]} Nxe5
{[%clk 00:11:26]} {[%emt 00:12:26]} 24. fxe5 {[%clk 00:18:51]} {[%emt
00:00:10]} Qg5 {[%clk 00:09:11]} {[%emt 00:02:45]} 25. Qxb6 {[%clk 00:17:30]}
{[%emt 00:01:52]} Bc6 {[%clk 00:08:48]} {[%emt 00:00:53]} 26. Qc5 {[%clk
00:11:36]} {[%emt 00:06:23]} Qxg3 {[%clk 00:06:56]} {[%emt 00:02:22]} 27. Rce1
{[%clk 00:11:03]} {[%emt 00:01:04]} dxc4 {[%clk 00:06:04]} {[%emt 00:01:22]} 28.
Qxc4 {[%clk 00:10:11]} {[%emt 00:01:22]} Rxf1+ {[%clk 00:05:15]} {[%emt
00:01:19]} 29. Qxf1 {[%clk 00:10:30]} {[%emt 00:00:11]} Rf8 {[%clk 00:05:30]}
{[%emt 00:00:14]} 30. Qe2 {[%clk 00:10:33]} {[%emt 00:00:26]} Qxe5 {[%clk
00:05:38]} {[%emt 00:00:24]} 31. Qxa6 {[%clk 00:10:20]} {[%emt 00:00:43]} Qb2
{[%clk 00:05:22]} {[%emt 00:00:45]} 32. Qxc6 {[%clk 00:09:57]} {[%emt
00:00:53]} Qf2+ {[%clk 00:05:31]} {[%emt 00:00:21]} 33. Kh2 {[%clk 00:09:51]}
{[%emt 00:00:35]} Qxe1 {[%clk 00:05:56]} {[%emt 00:00:05]} 34. Qxe6+ {[%clk
00:10:06]} {[%emt 00:00:15]} Kh8 {[%clk 00:06:18]} {[%emt 00:00:08]} 35. Qxe4
{[%clk 00:10:15]} {[%emt 00:00:21]} Kg8 {[%clk 00:04:42]} {[%emt 00:02:06]} 36.
Qh7+ {[%clk 00:07:49]} {[%emt 00:02:57]} Kf7 {[%clk 00:05:09]} {[%emt
00:00:04]} 37. Qxh5+ {[%clk 00:08:05]} {[%emt 00:00:13]} Ke6 {[%clk 00:05:06]}
{[%emt 00:00:30]} 38. Qg4+ {[%clk 00:07:11]} {[%emt 00:01:27]} Kd6 {[%clk
00:04:39]} {[%emt 00:00:58]} 39. Qd4+ {[%clk 00:06:25]} {[%emt 00:01:16]} Ke6
{[%clk 00:04:48]} {[%emt 00:00:21]} 40. Qc4+ {[%clk 00:05:34]} {[%emt
00:01:21]} Kd6 {[%clk 00:04:46]} {[%emt 00:00:33]} 41. Qa6+ {[%clk 00:05:13]}
{[%emt 00:00:50]} Ke5 {[%clk 00:04:43]} {[%emt 00:00:30]} 42. Qb5+ {[%clk
00:04:19]} {[%emt 00:01:27]} Kd6 {[%clk 00:04:50]} {[%emt 00:00:22]} 43. Qd3+
{[%clk 00:04:10]} {[%emt 00:00:40]} Ke6 {[%clk 00:04:40]} {[%emt 00:00:41]} 44.
Qg6+ {[%clk 00:03:32]} {[%emt 00:01:08]} Rf6 {[%clk 00:03:50]} {[%emt
00:01:20]} 45. Qg4+ {[%clk 00:02:41]} {[%emt 00:01:19]} Kd6 {[%clk 00:03:51]}
{[%emt 00:00:30]} 1/2-1/2

[Event "NJSK 2023 Meisjes C"]
[Site "Almelo, Netherlands"]
[Date "2023.05.04"]
[Round "5.2"]
[White "Jorritsma, Eli Alia"]
[Black "Westerhof, Fleur"]
[Result "0-1"]
[TimeControl "90min/40moves + 30min + 30sec/move"]
[WhiteElo "1330"]
[BlackElo "1743"]

1. Nf3 {[%clk 01:30:58]} {[%emt 00:00:01]} Nf6 {[%clk 01:30:53]} {[%emt
00:00:07]} 2. b3 {[%clk 01:31:20]} {[%emt 00:00:09]} d5 {[%clk 01:31:16]}
{[%emt 00:00:07]} 3. Bb2 {[%clk 01:31:42]} {[%emt 00:00:08]} Bg4 {[%clk
01:31:33]} {[%emt 00:00:13]} 4. e3 {[%clk 01:31:22]} {[%emt 00:00:50]} e6
{[%clk 01:30:49]} {[%emt 00:01:13]} 5. d4 {[%clk 01:30:55]} {[%emt 00:00:56]}
Be7 {[%clk 01:28:12]} {[%emt 00:03:07]} 6. Be2 {[%clk 01:29:29]} {[%emt
00:01:57]} O-O {[%clk 01:27:21]} {[%emt 00:01:21]} 7. O-O {[%clk 01:28:44]}
{[%emt 00:01:15]} c5 {[%clk 01:26:29]} {[%emt 00:01:22]} 8. Nbd2 {[%clk
01:26:54]} {[%emt 00:02:20]} Nc6 {[%clk 01:24:52]} {[%emt 00:02:07]} 9. c4
{[%clk 01:25:05]} {[%emt 00:02:19]} Bd6 {[%clk 01:17:36]} {[%emt 00:07:45]} 10.
Rc1 {[%clk 01:18:31]} {[%emt 00:07:05]} b6 {[%clk 01:17:09]} {[%emt 00:00:58]}
11. cxd5 {[%clk 00:58:59]} {[%emt 00:20:02]} exd5 {[%clk 01:11:41]} {[%emt
00:05:57]} 12. dxc5 {[%clk 00:46:15]} {[%emt 00:13:14]} Bxc5 {[%clk 01:01:08]}
{[%emt 00:11:03]} 13. a3 {[%clk 00:42:10]} {[%emt 00:04:35]} Rc8 {[%clk
00:56:13]} {[%emt 00:05:23]} 14. Bb5 {[%clk 00:36:27]} {[%emt 00:06:14]} Nb8
{[%clk 00:53:59]} {[%emt 00:02:44]} 15. b4 {[%clk 00:33:30]} {[%emt 00:03:28]}
Be7 {[%clk 00:52:15]} {[%emt 00:02:12]} 16. Qb3 {[%clk 00:32:02]} {[%emt
00:01:59]} a6 {[%clk 00:37:13]} {[%emt 00:15:33]} 17. Bd3 {[%clk 00:29:44]}
{[%emt 00:02:47]} Be6 {[%clk 00:32:11]} {[%emt 00:05:32]} 18. Nd4 {[%clk
00:25:21]} {[%emt 00:04:54]} Qd7 {[%clk 00:26:38]} {[%emt 00:06:03]} 19. N2f3
{[%clk 00:19:31]} {[%emt 00:06:19]} b5 {[%clk 00:21:05]} {[%emt 00:06:03]} 20.
Rc2 {[%clk 00:15:22]} {[%emt 00:04:41]} Rxc2 {[%clk 00:18:20]} {[%emt
00:03:15]} 21. Qxc2 {[%clk 00:15:34]} {[%emt 00:00:17]} Rc8 {[%clk 00:18:30]}
{[%emt 00:00:19]} 22. Qd2 {[%clk 00:15:20]} {[%emt 00:00:45]} Ne4 {[%clk
00:16:31]} {[%emt 00:02:29]} 23. Qe2 {[%clk 00:12:59]} {[%emt 00:02:51]} Nc3
{[%clk 00:15:44]} {[%emt 00:01:17]} 24. Qd2 {[%clk 00:12:23]} {[%emt 00:01:06]}
Ne4 {[%clk 00:15:15]} {[%emt 00:00:59]} 25. Qe2 {[%clk 00:12:28]} {[%emt
00:00:26]} Bg4 {[%clk 00:14:44]} {[%emt 00:01:00]} 26. Rc1 {[%clk 00:10:27]}
{[%emt 00:02:31]} Rxc1+ {[%clk 00:13:07]} {[%emt 00:02:07]} 27. Bxc1 {[%clk
00:10:51]} {[%emt 00:00:07]} Bh4 {[%clk 00:12:12]} {[%emt 00:01:20]} 28. g3
{[%clk 00:08:51]} {[%emt 00:02:36]} Bf6 {[%clk 00:12:00]} {[%emt 00:00:42]} 29.
Qe1 {[%clk 00:08:03]} {[%emt 00:01:18]} Nc6 {[%clk 00:09:22]} {[%emt 00:03:09]}
30. Bb2 {[%clk 00:06:46]} {[%emt 00:01:47]} Bxf3 {[%clk 00:09:33]} {[%emt
00:00:19]} 0-1

[Event "NJSK 2023 Meisjes C"]
[Site "Almelo, Netherlands"]
[Date "2023.05.04"]
[Round "5.3"]
[White "Koorevaar, Sarah-Joy"]
[Black "Van Apeldoorn, Vera"]
[Result "0-1"]
[TimeControl "90min/40moves + 30min + 30sec/move"]
[WhiteElo "1067"]
[BlackElo "1153"]

1. d4 {[%clk 01:30:59]} {[%emt 04:22:20]} d5 {[%clk 01:30:57]} {[%emt
00:00:03]} 2. c4 {[%clk 01:31:24]} {[%emt 00:00:05]} c6 {[%clk 01:31:14]}
{[%emt 00:00:13]} 3. g3 {[%clk 01:31:46]} {[%emt 00:00:07]} Nf6 {[%clk
01:30:55]} {[%emt 00:00:50]} 4. Bg2 {[%clk 01:31:49]} {[%emt 00:00:27]} e6
{[%clk 01:28:28]} {[%emt 00:02:57]} 5. Nf3 {[%clk 01:32:10]} {[%emt 00:00:09]}
Nbd7 {[%clk 01:27:16]} {[%emt 00:01:42]} 6. O-O {[%clk 01:32:20]} {[%emt
00:00:20]} Be7 {[%clk 01:25:39]} {[%emt 00:02:06]} 7. Bf4 {[%clk 01:32:23]}
{[%emt 00:00:28]} O-O {[%clk 01:23:22]} {[%emt 00:02:47]} 8. Nbd2 {[%clk
01:32:23]} {[%emt 00:00:30]} b6 {[%clk 01:22:36]} {[%emt 00:01:16]} 9. b3
{[%clk 01:30:22]} {[%emt 00:02:31]} Bb7 {[%clk 01:20:58]} {[%emt 00:02:08]} 10.
Re1 {[%clk 01:28:35]} {[%emt 00:02:18]} Re8 {[%clk 01:18:14]} {[%emt 00:03:13]}
11. e4 {[%clk 01:25:57]} {[%emt 00:03:07]} dxe4 {[%clk 01:16:35]} {[%emt
00:02:09]} 12. Nxe4 {[%clk 01:26:18]} {[%emt 00:00:09]} Nxe4 {[%clk 01:15:14]}
{[%emt 00:01:51]} 13. Rxe4 {[%clk 01:26:20]} {[%emt 00:00:28]} Nf6 {[%clk
01:12:40]} {[%emt 00:03:04]} 14. Re2 {[%clk 01:21:52]} {[%emt 00:04:58]} c5
{[%clk 01:08:30]} {[%emt 00:04:41]} 15. d5 {[%clk 01:15:45]} {[%emt 00:06:36]}
exd5 {[%clk 00:56:08]} {[%emt 00:12:52]} 16. cxd5 {[%clk 01:16:07]} {[%emt
00:00:08]} Nxd5 {[%clk 00:50:20]} {[%emt 00:06:17]} 17. Rd2 {[%clk 01:16:19]}
{[%emt 00:00:19]} Qc8 {[%clk 00:49:53]} {[%emt 00:00:57]} 18. Rxd5 {[%clk
01:07:01]} {[%emt 00:09:47]} Bxd5 {[%clk 00:49:49]} {[%emt 00:00:34]} 19. Qxd5
{[%clk 01:07:28]} {[%emt 00:00:03]} Rd8 {[%clk 00:46:35]} {[%emt 00:03:45]} 20.
Qc4 {[%clk 01:06:42]} {[%emt 00:01:16]} Qf5 {[%clk 00:43:48]} {[%emt 00:03:16]}
21. Nh4 {[%clk 01:05:14]} {[%emt 00:01:59]} Qf6 {[%clk 00:42:33]} {[%emt
00:01:44]} 22. Rc1 {[%clk 01:04:01]} {[%emt 00:01:44]} Rac8 {[%clk 00:40:58]}
{[%emt 00:02:04]} 23. Bb7 {[%clk 01:04:18]} {[%emt 00:00:13]} Rd4 {[%clk
00:38:30]} {[%emt 00:02:59]} 24. Qe2 {[%clk 01:04:09]} {[%emt 00:00:38]} Rcd8
{[%clk 00:34:42]} {[%emt 00:04:19]} 25. Be5 {[%clk 01:01:37]} {[%emt 00:03:01]}
Qh6 {[%clk 00:31:36]} {[%emt 00:03:37]} 26. Re1 {[%clk 01:01:44]} {[%emt
00:00:23]} R4d7 {[%clk 00:30:54]} {[%emt 00:01:11]} 27. Bc6 {[%clk 01:01:58]}
{[%emt 00:00:17]} Qxc6 {[%clk 00:29:22]} {[%emt 00:02:02]} 28. Qb2 {[%clk
00:56:21]} {[%emt 00:06:06]} Rd1 {[%clk 00:26:26]} {[%emt 00:03:27]} 29. Qe2
{[%clk 00:55:13]} {[%emt 00:01:37]} Rxe1+ {[%clk 00:26:42]} {[%emt 00:00:14]}
30. Qxe1 {[%clk 00:55:37]} {[%emt 00:00:06]} Bf6 {[%clk 00:26:32]} {[%emt
00:00:40]} 31. Bxf6 {[%clk 00:46:28]} {[%emt 00:09:40]} Qxf6 {[%clk 00:26:31]}
{[%emt 00:00:31]} 32. Qe4 {[%clk 00:46:11]} {[%emt 00:00:45]} Qa1+ {[%clk
00:25:56]} {[%emt 00:01:06]} 33. Kg2 {[%clk 00:46:28]} {[%emt 00:00:13]} Qxa2
{[%clk 00:25:38]} {[%emt 00:00:48]} 34. Qe5 {[%clk 00:42:16]} {[%emt 00:04:42]}
g6 {[%clk 00:21:12]} {[%emt 00:04:55]} 35. Nf3 {[%clk 00:37:52]} {[%emt
00:04:54]} Qxb3 {[%clk 00:20:25]} {[%emt 00:01:17]} 36. Qe7 {[%clk 00:30:58]}
{[%emt 00:07:24]} Ra8 {[%clk 00:19:09]} {[%emt 00:01:47]} 37. Ne5 {[%clk
00:24:32]} {[%emt 00:06:56]} Qe6 {[%clk 00:16:46]} {[%emt 00:02:52]} 38. Qc7
{[%clk 00:20:53]} {[%emt 00:04:10]} Rc8 {[%clk 00:16:01]} {[%emt 00:01:14]} 39.
Qb7 {[%clk 00:19:47]} {[%emt 00:01:36]} a5 {[%clk 00:14:19]} {[%emt 00:02:12]}
40. f4 {[%clk 00:14:21]} {[%emt 00:05:56]} c4 {[%clk 00:11:39]} {[%emt
00:03:10]} 0-1

[Event "NJSK 2023 Meisjes C"]
[Site "Almelo, Netherlands"]
[Date "2023.05.04"]
[Round "5.4"]
[White "Liu, Chia-Yun"]
[Black "Regterschot, Frederieke"]
[Result "1-0"]
[TimeControl "90min/40moves + 30min + 30sec/move"]
[WhiteElo "1470"]
[BlackElo "966"]

1. e4 {[%clk 01:30:58]} {[%emt 00:00:02]} e5 {[%clk 01:30:54]} {[%emt
00:00:06]} 2. Nf3 {[%clk 01:31:22]} {[%emt 00:00:06]} Nc6 {[%clk 01:31:12]}
{[%emt 00:00:12]} 3. Bc4 {[%clk 01:31:45]} {[%emt 00:00:07]} Bc5 {[%clk
01:31:18]} {[%emt 00:00:25]} 4. c3 {[%clk 01:32:02]} {[%emt 00:00:13]} Nf6
{[%clk 01:30:57]} {[%emt 00:00:50]} 5. d3 {[%clk 01:32:09]} {[%emt 00:00:23]}
O-O {[%clk 01:30:41]} {[%emt 00:00:47]} 6. b4 {[%clk 01:32:00]} {[%emt
00:00:39]} Bb6 {[%clk 01:30:29]} {[%emt 00:00:42]} 7. a4 {[%clk 01:31:54]}
{[%emt 00:00:35]} a6 {[%clk 01:30:22]} {[%emt 00:00:38]} 8. O-O {[%clk
01:31:22]} {[%emt 00:01:01]} Re8 {[%clk 01:30:28]} {[%emt 00:00:23]} 9. Nbd2
{[%clk 01:25:27]} {[%emt 00:06:26]} h6 {[%clk 01:30:22]} {[%emt 00:00:36]} 10.
Re1 {[%clk 01:25:17]} {[%emt 00:00:40]} d5 {[%clk 01:30:13]} {[%emt 00:00:39]}
11. exd5 {[%clk 01:24:46]} {[%emt 00:01:01]} Nxd5 {[%clk 01:30:24]} {[%emt
00:00:18]} 12. d4 {[%clk 01:23:01]} {[%emt 00:02:16]} Nxc3 {[%clk 01:29:22]}
{[%emt 00:01:32]} 13. Qb3 {[%clk 01:22:50]} {[%emt 00:00:42]} Be6 {[%clk
01:26:32]} {[%emt 00:03:19]} 14. Qxc3 {[%clk 01:18:00]} {[%emt 00:05:20]} Bxc4
{[%clk 01:26:37]} {[%emt 00:00:25]} 15. Qxc4 {[%clk 01:17:33]} {[%emt
00:00:58]} exd4 {[%clk 01:23:17]} 16. Bb2 {[%clk 01:16:27]} {[%emt 00:05:25]}
d3 {[%clk 01:22:45]} {[%emt 00:01:02]} 17. Rxe8+ {[%clk 01:11:36]} {[%emt
00:05:21]} Qxe8 {[%clk 01:22:56]} {[%emt 00:00:19]} 18. Qxd3 {[%clk 01:11:34]}
{[%emt 00:00:32]} Rd8 {[%clk 01:20:57]} {[%emt 00:02:27]} 19. Qc3 {[%clk
01:10:30]} {[%emt 00:01:35]} Nd4 {[%clk 01:21:06]} {[%emt 00:00:22]} 20. Qc4
{[%clk 01:06:17]} {[%emt 00:04:43]} Ne6 {[%clk 01:11:31]} {[%emt 00:10:05]} 21.
Re1 {[%clk 01:03:01]} {[%emt 00:03:45]} Qf8 {[%clk 01:10:39]} {[%emt 00:01:23]}
22. Qg4 {[%clk 00:58:37]} {[%emt 00:04:54]} Ng5 {[%clk 01:10:29]} {[%emt
00:00:40]} 23. h4 {[%clk 00:52:34]} {[%emt 00:06:33]} Ne6 {[%clk 01:05:26]}
{[%emt 00:05:33]} 24. Nf1 {[%clk 00:47:32]} {[%emt 00:05:32]} h5 {[%clk
01:03:15]} {[%emt 00:02:42]} 25. Qg3 {[%clk 00:44:10]} {[%emt 00:03:52]} Qxb4
{[%clk 01:03:01]} {[%emt 00:00:44]} 26. Bf6 {[%clk 00:43:34]} {[%emt 00:01:05]}
Rd3 {[%clk 01:02:29]} {[%emt 00:01:00]} 27. Rxe6 {[%clk 00:43:12]} {[%emt
00:00:54]} Qg4 {[%clk 01:01:38]} {[%emt 00:01:20]} 28. Re8+ {[%clk 00:43:35]}
{[%emt 00:00:09]} Kh7 {[%clk 01:01:46]} {[%emt 00:00:22]} 29. Ng5+ {[%clk
00:43:51]} {[%emt 00:00:14]} Kh6 {[%clk 01:01:05]} {[%emt 00:01:11]} 30. Qxd3
{[%clk 00:44:07]} {[%emt 00:00:14]} Bxf2+ {[%clk 00:57:48]} {[%emt 00:03:46]}
31. Kxf2 {[%clk 00:43:10]} {[%emt 00:01:27]} Qxh4+ {[%clk 00:56:50]} {[%emt
00:01:28]} 32. Kg1 {[%clk 00:42:54]} {[%emt 00:00:45]} gxf6 {[%clk 00:56:39]}
{[%emt 00:00:42]} 33. Qh7+ {[%clk 00:42:30]} {[%emt 00:00:55]} Kxg5 {[%clk
00:56:37]} {[%emt 00:00:31]} 34. Rg8+ {[%clk 00:42:53]} {[%emt 00:00:07]} Kf4
{[%clk 00:56:42]} {[%emt 00:00:25]} 35. g3+ {[%clk 00:43:14]} {[%emt 00:00:09]}
Qxg3+ {[%emt 00:00:20]} 36. Nxg3 {[%clk 00:43:29]} {[%emt 00:00:14]} c5 {[%clk
00:57:13]} {[%emt 00:00:11]} 37. Qe4# {[%clk 00:43:46]} {[%emt 00:00:12]} 1-0